bitfinex/quotes_ETHUSD_20241024
["timestamp","ask_amount","ask_price","bid_price","bid_amount"]
[1729786133122,0.7878,2524.0,2523.4,3.3110713]
[1729786133327,4.00211538,2523.9,2523.2,8.81514227]
[1729786133660,0.03992538,2523.9,2523.4,7.2738813]
[1729786133870,0.03992538,2523.9,2523.4,11.2367113]
[1729786134021,0.03992538,2523.9,2523.4,7.2738813]
[1729786134224,0.03992538,2523.9,2523.4,3.96281]
[1729786135664,0.03992538,2523.9,2523.3,5.24089323]
[1729786135859,0.03992538,2523.9,2523.4,5.29495845]
[1729786136061,0.03992538,2523.9,2523.4,8.60602975]
[1729786137260,0.03992538,2523.9,2523.4,4.64312975]
[1729786137431,0.03992538,2523.9,2523.4,1.33205845]
[1729786138853,4.00205538,2523.9,2523.4,1.33205845]
[1729786139051,4.00205538,2523.9,2523.2,4.76862]
[1729786139255,4.00205538,2523.9,2523.2,0.8055]
[1729786139441,4.00205538,2523.9,2523.0,8.70808]
[1729786139442,3.96236,2523.8,2523.0,8.70808]
[1729786139628,0.7585,2523.7,2523.1,0.07925825]
[1729786139979,4.76087676,2523.7,2523.0,8.0556913]
[1729786140157,0.79842676,2523.7,2523.1,1.10556913]
[1729786140331,3.96276,2523.5,2522.8,8.0263813]
[1729786140533,3.96276,2523.5,2522.8,8.0264813]
[1729786140534,0.7585,2523.4,2522.8,8.0264813]
[1729786140737,0.79847478,2523.4,2522.8,8.0264813]
[1729786141155,0.79847478,2523.4,2522.9,3.96363]
[1729786141391,0.79847478,2523.4,2523.0,7.2745213]
[1729786141595,0.79847478,2523.4,2523.0,0.81053895]
[1729786142107,4.76138478,2523.4,2522.8,4.0626713]
[1729786142260,0.79847478,2523.4,2522.8,11.9902413]
[1729786142889,0.79847478,2523.4,2522.8,8.0264113]
[1729786143104,0.79847478,2523.4,2522.8,11.9901713]
[1729786143271,0.79847478,2523.4,2523.0,3.3110713]
[1729786143589,0.03997478,2523.4,2523.1,8.25764713]
[1729786143908,0.7683,2523.7,2523.3,3.96304]
[1729786144396,0.7683,2523.7,2523.4,3.96283]
[1729786144754,0.7683,2523.7,2523.1,4.29437713]
[1729786145192,4.73075,2523.7,2523.1,4.29437713]
[1729786145357,0.7683,2523.7,2523.2,4.39254771]
[1729786145559,0.7683,2523.7,2523.2,7.70361901]
[1729786146072,3.96195,2524.1,2523.4,3.3110713]
[1729786146299,0.0395248,2523.6,2523.5,0.07925014]
[1729786146597,0.7627,2524.0,2523.4,3.96278]
[1729786146755,0.7627,2524.0,2523.4,5.2072549]
[1729786147197,0.0400324,2523.9,2523.4,5.2072549]
[1729786147558,0.0400324,2523.9,2523.5,3.96274]
[1729786148068,0.0400324,2523.9,2523.4,5.2073649]
[1729786148296,0.0400324,2523.9,2523.5,3.96274]
[1729786148503,0.0400324,2523.9,2523.6,0.52072149]
[1729786151611,0.0400324,2523.9,2523.6,4.48324149]
[1729786151773,0.0400324,2523.9,2523.6,0.52072149]
[1729786152616,0.0400324,2523.9,2523.3,3.96295]
[1729786152917,0.0400324,2523.9,2523.2,1.20783771]
[1729786153212,0.0400324,2523.9,2523.3,3.96304]
[1729786153410,0.0400324,2523.9,2523.3,7.92602]
[1729786153581,0.0400324,2523.9,2523.3,3.96298]
[1729786153781,4.0021924,2523.9,2523.4,0.51708177]
[1729786154103,4.0021924,2523.9,2523.2,5.17103771]
[1729786154301,4.0021924,2523.9,2523.3,3.96298]
[1729786154604,4.0021924,2523.9,2523.4,4.0420691]
[1729786154605,0.0400324,2523.9,2523.4,4.0420691]
[1729786154805,0.0400324,2523.9,2523.5,3.9627]
[1729786155113,4.0022224,2523.9,2523.3,3.96296]
[1729786155320,4.0022224,2523.9,2523.3,5.5074729]
[1729786155986,4.73427,2523.8,2523.2,0.42943771]
[1729786156222,0.03997272,2523.7,2523.2,0.42943771]
[1729786156542,4.78003,2523.6,2522.8,4.76917]
[1729786156681,3.96298,2523.4,2522.8,3.96383]
[1729786157032,0.03947479,2523.3,2522.8,3.96383]
[1729786157329,0.03947479,2523.3,2522.8,4.75662]
[1729786157489,4.00257479,2523.3,2522.8,0.79279]
[1729786158039,0.8174,2523.2,2522.8,0.79279]
[1729786158196,0.85675028,2523.2,2522.8,4.75662]
[1729786159229,0.85675028,2523.2,2522.8,4.83580735]
[1729786159393,0.85675028,2523.2,2522.9,0.81468787]
[1729786159593,0.03935028,2523.2,2523.0,0.07926725]
[1729786159930,0.7582,2523.6,2523.0,3.96345]
[1729786160285,0.03904387,2523.5,2523.0,3.96345]
[1729786160884,0.03904387,2523.5,2522.9,8.08943917]
[1729786161097,4.00180387,2523.5,2522.9,4.77836787]
[1729786161383,3.96298,2523.4,2522.8,3.96377]
[1729786161590,4.76007489,2523.3,2522.7,3.96389]
[1729786162808,0.79699489,2523.3,2522.8,3.96383]
[1729786163008,4.76012489,2523.3,2522.7,3.96389]
[1729786163223,3.96331,2523.2,2522.5,7.0757713]
[1729786163429,0.7961,2523.0,2522.3,3.96456]
[1729786163640,4.75971,2523.0,2522.3,7.35495473]
[1729786163941,0.03681866,2522.9,2522.4,3.96438]
[1729786164307,0.03681866,2522.9,2522.3,7.2755813]
[1729786164507,0.03681866,2522.9,2522.3,8.08073943]
[1729786164903,0.03681866,2522.9,2522.5,3.3110713]
[1729786165133,0.03681866,2522.9,2522.3,4.11622943]
[1729786165340,0.03681866,2522.9,2522.4,3.96445]
[1729786166148,0.03681866,2522.9,2522.4,4.04373027]
[1729786166351,0.03681866,2522.9,2522.5,3.96432]
[1729786166851,0.03681866,2522.9,2522.4,5.25616524]
[1729786168819,0.03681866,2522.9,2522.4,1.29172524]
[1729786169039,0.03681866,2522.9,2522.5,3.96431]
[1729786170637,0.03681866,2522.9,2522.5,3.96423]
[1729786171369,0.03681866,2522.9,2522.8,3.96384]
[1729786171536,0.03681866,2522.9,2522.7,3.96399]
[1729786171722,0.03681866,2522.9,2522.8,3.96384]
[1729786172233,0.784,2523.3,2522.9,3.96366]
[1729786173189,0.784,2523.3,2522.8,3.96377]
[1729786173460,0.784,2523.3,2522.9,1.12387513]
[1729786173662,0.784,2523.3,2522.7,3.96399]
[1729786174163,1.23943918,2523.5,2522.6,3.0]
[1729786174164,0.8158,2523.1,2522.6,3.0]
[1729786174548,0.03665458,2523.0,2522.6,3.0]
[1729786175356,0.03665458,2523.0,2522.6,6.96415]
[1729786175561,0.03665458,2523.0,2522.7,1.62853085]
[1729786176927,0.03665458,2523.0,2522.7,1.5492606]
[1729786177740,0.03665458,2523.0,2522.7,1.62853086]
[1729786177937,0.03665458,2523.0,2522.7,1.5492606]
[1729786180533,0.03665458,2523.0,2522.6,3.96407]
[1729786180739,0.03665458,2523.0,2522.6,7.92814]
[1729786180948,0.03665458,2523.0,2522.8,3.96383]
[1729786181149,0.03665458,2523.0,2522.9,4.0429574]
[1729786181377,0.7771,2523.3,2523.0,3.96346]
[1729786181537,0.7771,2523.3,2523.0,1.13174818]
[1729786181859,0.7771,2523.3,2522.8,4.04310742]
[1729786182063,0.7771,2523.3,2522.8,3.96384]
[1729786182266,0.7771,2523.3,2522.7,4.79139]
[1729786182468,0.7771,2523.3,2522.8,0.07926741]
[1729786182640,0.7771,2523.3,2522.8,4.04310741]
[1729786183083,0.7771,2523.3,2522.9,0.88344274]
[1729786183740,0.7575,2523.0,2522.3,3.0]
[1729786183946,0.7575,2523.0,2522.4,4.04365695]
[1729786184176,0.7575,2523.0,2522.5,3.96424]
[1729786185176,0.03571821,2522.9,2522.5,3.96424]
[1729786185673,0.03571821,2522.9,2522.4,3.96438]
[1729786185875,0.03571821,2522.9,2522.5,0.696438]
[1729786186580,0.03571821,2522.9,2522.7,3.96391]
[1729786187590,0.03571821,2522.9,2522.5,7.9717993]
[1729786187591,0.03571821,2522.9,2522.5,0.696438]
[1729786187758,0.03571821,2522.9,2522.4,4.04366865]
[1729786190479,0.03571821,2522.9,2522.5,3.96417]
[1729786190685,0.03571821,2522.9,2522.5,3.9643]
[1729786190989,0.03571821,2522.9,2522.6,3.96409]
[1729786191493,0.03571821,2522.9,2522.8,3.96384]
[1729786191680,0.7537,2523.2,2522.8,5.16699576]
[1729786191991,0.03556901,2522.9,2522.8,9.05149913]
[1729786192200,0.7537,2523.2,2522.8,5.08765913]
[1729786192490,0.03587817,2523.1,2522.8,5.08765913]
[1729786192676,0.03587817,2523.1,2522.8,1.12388913]
[1729786192990,0.03587817,2523.1,2522.8,5.08766913]
[1729786193302,0.03587817,2523.1,2523.0,3.96353]
[1729786193507,1.99313918,2523.5,2523.0,3.96353]
[1729786193871,1.99313918,2523.5,2523.1,3.96335]
[1729786194073,0.7537,2523.5,2523.1,4.04260758]
[1729786195370,0.7537,2523.5,2523.1,3.96335]
[1729786195573,0.7537,2523.5,2523.1,5.25554872]
[1729786196009,0.0363544,2523.4,2523.1,5.25554872]
[1729786196205,0.0363544,2523.4,2523.1,1.29219872]
[1729786199515,0.0363544,2523.4,2522.9,4.86885591]
[1729786200828,0.0363544,2523.4,2522.9,4.86873591]
[1729786201030,0.0363544,2523.4,2523.0,3.96352]
[1729786201413,1.99313918,2523.5,2522.9,4.86884591]
[1729786201985,1.99313918,2523.5,2523.0,3.96351]
[1729786202183,1.99313918,2523.5,2523.0,5.17785272]
[1729786202719,1.99313918,2523.5,2523.0,1.21434272]
[1729786202905,1.23943918,2523.4,2523.0,1.21434272]
[1729786203416,1.99313918,2523.5,2523.0,1.21434272]
[1729786203879,1.99313918,2523.5,2523.0,5.17781272]
[1729786204083,1.23943918,2523.5,2523.3,3.96296]
[1729786204308,1.23943918,2523.7,2523.4,3.3110713]
[1729786204486,3.9626,2523.6,2523.0,3.3110713]
[1729786204691,0.7556,2523.4,2522.9,7.71522]
[1729786204899,0.7556,2523.4,2523.0,3.39032902]
[1729786205301,0.7556,2523.4,2523.0,3.3110713]
[1729786205804,3.96315,2523.3,2522.6,7.13895953]
[1729786206005,3.96315,2523.3,2522.6,10.2751513]
[1729786206321,5.20258918,2523.3,2522.6,10.2751513]
[1729786206620,3.96324,2523.2,2522.6,10.2751513]
[1729786206820,3.96324,2523.2,2522.6,11.85835225]
[1729786207036,0.7702,2523.1,2522.6,7.89427225]
[1729786207180,4.73382,2523.0,2522.3,4.71752]
[1729786207380,3.96376,2522.9,2522.3,4.71752]
[1729786208080,3.96385,2522.8,2522.2,7.2758313]
[1729786208285,3.9637,2522.9,2522.3,3.96463]
[1729786208518,2.77222366,2523.0,2522.4,3.39034998]
[1729786208519,6.73582366,2523.0,2522.4,3.39034998]
[1729786208823,10.69946366,2523.0,2522.4,3.39034998]
[1729786208978,6.73582366,2523.0,2522.4,3.39034998]
[1729786209180,5.49638448,2523.0,2522.4,7.35473998]
[1729786209383,0.7702,2523.0,2522.6,3.3110713]
[1729786209620,0.7702,2523.0,2522.7,0.07927199]
[1729786209798,0.7702,2523.0,2522.6,3.3110713]
[1729786209982,0.7702,2523.0,2522.7,0.07927207]
[1729786210211,0.7702,2523.0,2522.6,3.3110713]
[1729786210806,0.7702,2523.0,2522.5,4.7262]
[1729786210982,0.7621,2522.9,2522.4,3.3110713]
[1729786211191,0.7621,2522.9,2522.4,3.96443]
[1729786211483,3.96417,2522.6,2522.1,3.0]
[1729786211688,0.8055,2522.5,2521.8,1.42646629]
[1729786211994,4.76992,2522.5,2521.9,3.96519]
[1729786212982,4.76992,2522.5,2521.8,4.73753759]
[1729786212983,3.96448,2522.4,2521.8,8.70292759]
[1729786213413,3.96464,2522.3,2521.8,4.73753759]
[1729786213732,3.96464,2522.3,2521.6,7.2767113]
[1729786213889,4.7197,2522.2,2521.7,3.0]
[1729786214089,0.7549,2522.2,2521.7,10.93106]
[1729786214289,0.7549,2522.2,2521.8,7.35569008]
[1729786214519,0.8107,2522.4,2521.9,4.04454477]
[1729786214824,0.8107,2522.4,2522.0,3.3110713]
[1729786214987,0.8107,2522.4,2522.0,7.2761613]
[1729786215187,0.8107,2522.4,2522.1,0.07929092]
[1729786215437,0.8107,2522.4,2522.0,7.2761613]
[1729786215588,0.8107,2522.4,2522.1,0.07929092]
[1729786216027,0.8107,2522.4,2522.0,7.2761613]
[1729786216813,3.96417,2522.6,2522.1,0.07929092]
[1729786217020,1.23943918,2522.8,2522.4,7.2754713]
[1729786217325,0.7845,2522.9,2522.4,8.0934713]
[1729786217490,0.7845,2522.9,2522.4,0.818]
[1729786218436,4.74819,2522.9,2522.4,0.818]
[1729786220002,5.98762918,2522.9,2522.4,0.818]
[1729786220203,4.74819,2522.9,2522.4,0.818]
[1729786220725,0.7845,2522.9,2522.4,0.818]
[1729786220898,3.96391,2522.8,2522.4,0.818]
[1729786221744,4.7482,2522.9,2522.4,0.818]
[1729786222033,4.7482,2522.9,2522.4,2.02382513]
[1729786222895,3.96389,2522.8,2522.4,0.818]
[1729786224242,3.96404,2522.7,2522.1,5.56116022]
[1729786224537,0.7938,2522.3,2521.9,0.7818]
[1729786224733,4.75844,2522.3,2521.9,0.7818]
[1729786225695,0.7938,2522.3,2521.9,0.7818]
[1729786225899,4.75855,2522.3,2521.9,0.7818]
[1729786226911,4.75851,2522.3,2521.9,0.7818]
[1729786227233,4.7585,2522.3,2521.9,0.7818]
[1729786227827,3.96501,2522.1,2521.6,7.0961713]
[1729786228145,3.9651,2522.0,2521.6,0.7851]
[1729786228352,3.96536,2521.9,2521.4,4.73420274]
[1729786228502,3.9651,2522.0,2521.5,3.96586]
[1729786228702,7.93031,2522.0,2521.4,8.70022274]
[1729786228902,7.93031,2522.0,2521.4,4.73420274]
[1729786228903,3.96527,2521.9,2521.4,4.73420274]
[1729786229207,4.79251,2521.8,2521.4,1.42313144]
[1729786229403,0.827,2521.8,2521.4,1.42313144]
[1729786229809,4.79251,2521.8,2521.3,0.05]
[1729786230054,0.827,2521.8,2521.3,0.05]
[1729786230257,3.96567,2521.7,2521.3,0.05]
[1729786230555,3.96597,2521.5,2521.3,0.05]
[1729786230854,7.93199,2521.5,2521.3,0.05]
[1729786231032,3.96605,2521.4,2521.3,0.05]
[1729786231552,3.96591,2521.5,2521.3,0.05]
[1729786231704,3.96574,2521.6,2521.3,0.05]
[1729786231902,0.07885382,2521.5,2521.3,0.05]
[1729786233249,3.96605,2521.4,2521.3,0.05]
[1729786233406,4.74825,2521.4,2521.3,0.05]
[1729786234452,12.86737523,2521.4,2521.3,1e-05]
[1729786234659,13.28005987,2521.4,2521.3,1e-05]
[1729786234908,13.6464997,2521.4,2521.3,1e-05]
[1729786235110,15.70992292,2521.4,2521.3,1e-05]
[1729786235393,13.6464997,2521.4,2521.3,1e-05]
[1729786235594,3.96764,2520.4,2520.0,0.8249]
[1729786235772,3.96764,2520.4,2519.7,6.96863]
[1729786235773,7.93541,2520.4,2519.8,3.96856]
[1729786235957,0.07700598,2520.3,2519.9,7.2794013]
[1729786237103,0.07700598,2520.3,2519.9,3.3110713]
[1729786237921,4.04488598,2520.3,2519.9,3.3110713]
[1729786238099,0.07700598,2520.3,2519.9,0.07935947]
[1729786238394,0.07700598,2520.3,2519.9,4.04765947]
[1729786238602,4.7508,2520.5,2519.9,4.04765947]
[1729786238804,0.07654638,2520.2,2519.9,7.35873077]
[1729786239021,4.7508,2520.5,2519.9,7.35873077]
[1729786239200,0.07621597,2520.1,2519.9,7.35873077]
[1729786239502,4.7508,2520.5,2519.9,7.35873077]
[1729786239813,4.77053,2520.7,2520.1,3.96806]
[1729786240024,0.07658467,2520.4,2520.2,3.96785]
[1729786240303,4.77045,2520.7,2520.2,4.04720064]
[1729786240468,4.77045,2520.7,2520.2,3.96785]
[1729786240469,0.07646178,2520.3,2520.2,3.96785]
[1729786240668,3.96645,2521.2,2520.2,3.96785]
[1729786240669,3.96654,2521.1,2520.3,0.818]
[1729786240918,0.7942,2521.2,2520.3,0.818]
[1729786240919,3.96671,2521.0,2520.4,3.96762]
[1729786241219,3.96671,2521.0,2520.5,3.96739]
[1729786241567,4.76068,2521.2,2520.6,3.96723]
[1729786241772,3.96668,2521.0,2520.5,3.96746]
[1729786242011,7.93344,2521.0,2520.5,3.96746]
[1729786242370,0.8072,2520.8,2520.3,0.818]
[1729786242503,3.9673,2520.6,2520.2,3.0]
[1729786242697,0.0742695,2520.5,2520.2,3.07934871]
[1729786242899,0.0742695,2520.5,2520.4,3.96762]
[1729786243104,11.37,2521.5,2520.4,0.8033]
[1729786243105,3.96715,2520.7,2520.4,0.8033]
[1729786243302,0.7641,2521.1,2520.4,0.8033]
[1729786243303,3.967,2520.8,2520.4,0.8033]
[1729786243620,3.96699,2520.9,2520.4,0.8033]
[1729786243803,0.07451523,2520.7,2520.6,3.9673]
[1729786244125,4.7307,2521.1,2520.6,3.9673]
[1729786244505,3.96684,2520.9,2520.4,4.77088]
[1729786244813,0.07347873,2520.8,2520.4,4.77088]
[1729786245518,0.07347873,2520.8,2520.4,8.0818713]
[1729786245679,0.7641,2521.1,2520.4,4.7708]
[1729786245884,3.96685,2520.9,2520.4,4.58303361]
[1729786246118,0.07286706,2520.8,2520.5,3.96736]
[1729786246522,0.0708672,2520.7,2520.5,3.96736]
[1729786246735,3.96668,2521.0,2520.5,3.96736]
[1729786246911,0.07074429,2520.6,2520.5,3.96736]
[1729786247128,3.96668,2521.0,2520.4,0.61542361]
[1729786247297,3.96709,2520.8,2520.1,10.2790613]
[1729786247497,0.8325,2520.6,2520.1,6.96799]
[1729786247691,0.07261423,2520.5,2520.1,10.2790613]
[1729786247938,3.96707,2520.8,2520.3,3.96768]
[1729786248108,1.305578,2520.9,2520.4,3.9676]
[1729786248430,5.272408,2520.9,2520.4,3.9676]
[1729786248636,5.272408,2520.9,2520.4,4.04694548]
[1729786249135,4.75756,2521.1,2520.6,3.9672]
[1729786249293,0.07294192,2520.8,2520.6,3.9672]
[1729786249501,3.96675,2521.0,2520.5,3.96745]
[1729786249865,0.07118784,2520.9,2520.6,4.0464976]
[1729786250197,4.75757,2521.1,2520.6,3.96716]
[1729786250429,0.07273569,2520.8,2520.6,3.96716]
[1729786250734,0.07101774,2520.7,2520.6,3.96716]
[1729786250895,4.75757,2521.1,2520.6,3.96716]
[1729786251210,0.07140859,2521.0,2520.6,3.96716]
[1729786251600,0.07140859,2521.0,2520.7,3.96713]
[1729786251998,0.07140859,2521.0,2520.6,4.837507]
[1729786252304,0.07249183,2520.9,2520.6,4.91684455]
[1729786252504,0.8035,2521.3,2520.4,4.73628]
[1729786252505,3.96701,2520.8,2520.4,0.7688]
[1729786252737,0.07252118,2520.7,2520.2,3.8043]
[1729786253036,0.8197,2520.7,2520.2,7.77223]
[1729786253394,0.07098846,2520.6,2520.2,3.8043]
[1729786253827,4.03836846,2520.6,2520.2,3.8043]
[1729786254360,3.96759,2520.5,2520.0,3.7851]
[1729786254656,4.03845554,2520.5,2520.0,7.83257542]
[1729786254862,4.03845554,2520.5,2520.0,7.75322]
[1729786255371,0.07086554,2520.5,2520.1,3.96807]
[1729786255669,0.07086554,2520.5,2520.2,3.96791]
[1729786256030,4.78696,2520.7,2520.2,3.96791]
[1729786256227,0.07054533,2520.4,2520.2,3.96791]
[1729786256539,0.0704224,2520.3,2520.2,3.96791]
[1729786256748,5.662352,2520.7,2520.2,3.96791]
[1729786256969,0.0704224,2520.3,2520.2,3.96791]
[1729786257259,5.662352,2520.7,2520.2,3.96791]
[1729786257490,0.07040539,2520.3,2520.2,3.96791]
[1729786257965,3.96732,2520.6,2520.1,7.35848229]
[1729786258130,0.07040539,2520.3,2520.1,7.35848229]
[1729786258332,9.629582,2520.7,2520.1,7.35848229]
[1729786258533,0.07077416,2520.6,2520.1,7.35848229]
[1729786258832,0.07077416,2520.6,2520.2,3.9679]
[1729786259042,0.07077416,2520.6,2520.1,7.2790913]
[1729786259239,0.07077416,2520.6,2520.1,7.35844222]
[1729786259465,0.07077416,2520.6,2520.1,11.32644222]
[1729786259669,0.07077416,2520.6,2520.1,7.2790713]
[1729786259877,0.07077416,2520.6,2520.1,7.35842222]
[1729786260168,0.07077416,2520.6,2520.1,4.04735092]
[1729786260376,0.07077416,2520.6,2520.1,8.01537092]
[1729786260543,4.03815416,2520.6,2520.1,3.968]
[1729786260745,4.03815416,2520.6,2520.1,8.01537091]
[1729786260954,4.03815416,2520.6,2520.1,3.968]
[1729786261181,4.03815416,2520.6,2520.1,8.0153409]
[1729786261479,0.07077416,2520.6,2520.1,3.96799]
[1729786261684,0.07077416,2520.6,2520.2,3.96789]
[1729786262294,0.07077416,2520.6,2520.1,0.07935089]
[1729786262490,3.96777,2520.4,2519.9,3.0]
[1729786262781,3.9675,2520.5,2519.9,6.96827]
[1729786262782,0.07223,2520.3,2519.9,6.96827]
[1729786262953,7.93508,2520.5,2519.9,7.0476281]
[1729786263159,0.07210714,2520.2,2519.9,7.0476281]
[1729786263356,3.9675,2520.5,2519.9,7.0476281]
[1729786263555,0.07198426,2520.1,2519.9,7.0476281]
[1729786263880,4.3644,2520.4,2519.9,7.0476281]
[1729786264071,0.07186137,2520.0,2519.9,7.0476281]
[1729786264271,4.3644,2520.4,2519.9,7.0476281]
[1729786264442,0.07189237,2520.0,2519.9,6.96841]
[1729786264648,4.3644,2520.4,2519.9,7.04776819]
[1729786264984,0.39675,2520.4,2519.9,3.07935819]
[1729786265186,0.07223,2520.3,2520.0,3.96825]
[1729786265363,3.96752,2520.5,2520.0,3.96825]
[1729786265546,0.07210714,2520.2,2520.0,3.96825]
[1729786265746,3.96752,2520.5,2520.0,3.96825]
[1729786266061,0.07198426,2520.1,2520.0,3.96825]
[1729786266261,3.96752,2520.5,2520.0,3.96825]
[1729786266457,0.07198426,2520.1,2520.0,3.96825]
[1729786267092,4.842981,2520.5,2520.0,3.96825]
[1729786267295,0.07187199,2520.1,2520.0,3.96825]
[1729786267588,0.07180394,2520.1,2519.9,7.04774819]
[1729786267801,3.96764,2520.4,2519.9,7.04774819]
[1729786267966,0.07168105,2520.0,2519.9,11.01608819]
[1729786268154,3.96749,2520.5,2519.9,6.96834]
[1729786268356,3.96749,2520.5,2520.0,3.96823]
[1729786268859,7.93506,2520.5,2520.0,3.96823]
[1729786269048,3.96771,2520.4,2519.9,6.96834]
[1729786269252,3.96771,2520.4,2519.9,3.0]
[1729786269253,4.761225,2520.4,2519.9,3.0]
[1729786269478,4.761225,2520.4,2519.7,3.0]
[1729786269479,3.96822,2520.1,2519.7,3.0]
[1729786269677,3.96822,2520.1,2519.6,4.77012]
[1729786269880,3.96808,2520.2,2519.6,4.77012]
[1729786269881,3.96801,2520.2,2519.7,3.9687]
[1729786270367,3.96812,2520.1,2519.6,4.77009]
[1729786271097,3.96796,2520.2,2519.7,3.96872]
[1729786271411,4.442116,2520.1,2519.6,4.77016]
[1729786271694,0.474016,2520.1,2519.7,3.96869]
[1729786271859,0.07092807,2520.0,2519.6,4.77016]
[1729786272449,0.07092807,2520.0,2519.6,8.73897]
[1729786272650,0.07092807,2520.0,2519.6,8.0811613]
[1729786272883,0.07092807,2520.0,2519.7,4.0480055]
[1729786273089,0.07092807,2520.0,2519.7,3.96864]
[1729786273398,0.07063987,2519.9,2519.7,3.96864]
[1729786273701,4.74008,2520.3,2519.7,3.96864]
[1729786274000,4.5213195,2520.2,2519.7,3.96864]
[1729786274167,4.59223267,2520.2,2519.6,8.0811913]
[1729786274881,3.96815,2520.1,2519.6,8.0811913]
[1729786275261,0.07056828,2520.0,2519.6,4.77012]
[1729786276196,0.83240013,2519.9,2519.5,3.96898]
[1729786276404,0.83240013,2519.9,2519.4,3.96915]
[1729786276568,0.83240013,2519.9,2519.4,3.96911]
[1729786276762,0.83240013,2519.9,2519.3,7.0957713]
[1729786276763,3.96857,2519.8,2519.3,3.7847]
[1729786277006,4.03853604,2519.8,2519.3,0.7847]
[1729786277166,0.99280642,2519.8,2519.2,4.33976]
[1729786277497,3.96899,2519.6,2519.2,3.3704]
[1729786277702,3.96878,2519.7,2519.2,7.33989]
[1729786278003,0.06963096,2519.6,2519.2,3.3704]
[1729786278189,4.03857096,2519.6,2519.2,0.3204]
[1729786278392,0.8046,2519.5,2519.2,0.3204]
[1729786278570,0.87433737,2519.5,2519.2,0.3204]
[1729786278766,4.84337737,2519.5,2519.2,0.3204]
[1729786279078,1.75556611,2519.5,2519.2,0.3204]
[1729786279289,9.69377611,2519.5,2519.2,0.3204]
[1729786279507,3.96921,2519.4,2519.2,0.3204]
[1729786279887,0.0694199,2519.3,2519.2,0.3204]
[1729786282206,16.57454834,2520.1,2519.2,0.3204]
[1729786282207,0.8267,2519.8,2519.2,4.22988486]
[1729786282423,3.96848,2519.9,2519.4,3.96911]
[1729786282868,4.03835798,2519.8,2519.4,3.96911]
[1729786283407,0.06978798,2519.8,2519.4,3.96907]
[1729786283727,0.06978798,2519.8,2519.5,3.96903]
[1729786284067,0.06978798,2519.8,2519.5,3.96896]
[1729786284267,4.79498,2520.0,2519.6,3.9688]
[1729786284493,0.06998625,2519.7,2519.6,3.9688]
[1729786285008,3.96812,2520.1,2519.6,0.8186]
[1729786285218,0.06998625,2519.7,2519.5,3.96902]
[1729786285579,4.445602,2520.0,2519.5,3.96902]
[1729786285775,0.06986331,2519.6,2519.5,3.96902]
[1729786286100,0.8166,2519.8,2519.4,4.78779]
[1729786286286,4.78517,2519.8,2519.3,3.96921]
[1729786286490,4.78517,2519.8,2519.2,0.3204]
[1729786286491,4.03879625,2519.7,2519.2,4.28989]
[1729786286821,3.96888,2519.6,2519.2,3.3204]
[1729786286981,3.96888,2519.6,2519.2,0.3204]
[1729786286982,4.03883184,2519.6,2519.2,0.3204]
[1729786287387,0.7929,2519.4,2519.2,0.3204]
[1729786287807,0.06948764,2519.3,2519.2,0.3204]
[1729786289403,5.9034954,2519.3,2519.2,0.3204]
[1729786290339,5.9134954,2519.3,2519.2,0.3204]
[1729786290540,23.6045667,2519.3,2519.2,0.3204]
[1729786291102,24.84092504,2519.3,2519.2,0.3204]
[1729786291520,23.6045667,2519.3,2519.2,0.3204]
[1729786292050,24.84092504,2519.3,2519.2,9.5e-06]
[1729786292348,24.83936121,2519.3,2519.2,9.5e-06]
[1729786292512,23.6045667,2519.3,2519.2,9.5e-06]
[1729786292841,24.83936121,2519.3,2519.2,9.5e-06]
[1729786293012,23.6045667,2519.3,2519.2,9.5e-06]
[1729786293215,24.83936121,2519.3,2519.2,9.5e-06]
[1729786293422,25.25319738,2519.3,2519.2,9.5e-06]
[1729786294314,23.6045667,2519.3,2519.2,9.5e-06]
[1729786294508,24.83787025,2519.3,2519.2,9.5e-06]
[1729786294910,24.8378874,2519.3,2519.2,9.5e-06]
[1729786295337,24.2878874,2519.3,2519.2,9.5e-06]
[1729786295615,23.0545667,2519.3,2519.2,9.5e-06]
[1729786297120,23.6045667,2519.3,2519.2,9.5e-06]
[1729786303735,23.81305216,2519.3,2519.2,9.5e-06]
[1729786307277,19.75,2518.6,2517.0,0.8268]
[1729786307582,19.75,2518.6,2516.2,0.1250015]
[1729786307583,0.52757321,2517.5,2516.8,0.7772]
[1729786307784,3.97297,2517.1,2516.8,0.7772]
[1729786307988,0.6885771,2517.5,2516.8,0.7772]
[1729786308156,0.0589328,2517.0,2516.8,0.7772]
[1729786308345,3.97251,2517.3,2516.3,0.7917]
[1729786308545,3.97314,2516.9,2516.3,0.6917]
[1729786308784,0.05853361,2516.8,2516.3,0.6917]
[1729786309078,4.03185361,2516.8,2516.3,0.6917]
[1729786309388,3.97347,2516.7,2516.3,0.6917]
[1729786309745,0.05776616,2516.7,2516.3,0.6917]
[1729786309945,3.97363,2516.6,2516.3,0.6917]
[1729786310205,0.05710454,2516.5,2516.3,0.6917]
[1729786310729,0.05710454,2516.5,2516.3,7.3646021]
[1729786310899,3.97276,2517.2,2516.4,7.72289036]
[1729786311096,3.8318,2517.8,2516.4,3.74896036]
[1729786311329,3.8318,2517.8,2516.4,0.74896036]
[1729786311330,3.97307,2517.0,2516.4,0.74896036]
[1729786311508,3.97307,2517.0,2516.2,3.1250015]
[1729786311835,3.97322,2516.9,2516.3,0.83397138]
[1729786311996,3.97307,2517.0,2516.3,3.7545]
[1729786312328,3.97307,2517.0,2516.4,0.7596]
[1729786312531,3.97239,2517.4,2516.4,0.7596]
[1729786312532,3.97284,2517.1,2516.5,0.7596]
[1729786312717,3.97284,2517.1,2516.6,0.40706713]
[1729786313126,7.94576,2517.1,2516.6,0.40706713]
[1729786313313,5.888389,2517.6,2516.5,0.7596]
[1729786313314,3.97321,2516.9,2516.5,0.7596]
[1729786313631,3.97298,2517.0,2516.5,0.7596]
[1729786313859,3.97235,2517.4,2516.5,0.7596]
[1729786314172,3.97329,2516.8,2516.5,0.7596]
[1729786314326,3.97361,2516.6,2516.5,0.7596]
[1729786314516,0.05707816,2516.7,2516.3,0.8033]
[1729786314715,4.03061113,2516.6,2516.3,0.8033]